[Event "Gibraltar Masters 18th"]
[Site "Gibraltar"]
[Date "2020.01.21"]
[Round "1.42"]
[White "Idani, Pouya"]
[Black "Injac, Teodora"]
[Result "1-0"]
[ECO "E06"]
[WhiteElo "2577"]
[BlackElo "2284"]
[PlyCount "45"]
[EventDate "2020.01.21"]
[EventType "swiss"]
[EventRounds "10"]
[EventCountry "GGB"]
[SourceTitle "BritBase"]
[Source "John Saunders"]
[SourceDate "2021.06.05"]
[SourceVersion "1"]
[SourceVersionDate "2021.06.05"]
[SourceQuality "1"]
[TimeControl "40/100:0"]
[WhiteClock "1:11:46"]
[BlackClock "0:12:43"]

1. d4 {[%emt 0:00:00]} Nf6 {[%emt 0:00:00]} 2. c4 {[%emt 0:00:00]} e6 {[%emt 0:
00:00]} 3. g3 {[%emt 0:00:00]} d5 {[%emt 0:00:00]} 4. Bg2 {[%emt 0:00:00]} Be7
{[%emt 0:00:00]} 5. Nf3 {[%emt 0:00:00]} O-O {[%emt 0:00:00]} 6. Qc2 {[%emt 0:
00:00]} c5 {[%emt 0:00:00]} 7. O-O {[%emt 0:00:00]} cxd4 {[%emt 0:00:00]} 8.
Nxd4 {[%emt 0:00:00]} Bd7 {[%emt 0:00:00]} 9. cxd5 {[%emt 0:00:00]} Nxd5 {
[%emt 0:00:00]} 10. Bxd5 {[%emt 0:00:00]} exd5 {[%emt 0:00:00]} 11. Nc3 {
[%emt 0:00:00]} Bf6 {[%emt 0:00:00]} 12. Rd1 {[%emt 0:00:00]} Nc6 {[%emt 0:00:
00]} 13. Be3 {[%emt 0:00:00]} Bg4 {[%emt 0:00:00]} 14. Qb3 {[%emt 0:00:00]} Na5
{[%emt 0:00:00]} 15. Qxd5 {[%emt 0:00:00]} Qxd5 {[%emt 0:00:00]} 16. Nxd5 {
[%emt 0:00:00]} Bxd4 {[%emt 0:00:00]} 17. Rxd4 {[%emt 0:00:00]} Bxe2 {[%emt 0:
00:00]} 18. Re1 {[%emt 0:00:00]} Bf3 {[%emt 0:00:00]} 19. Ne7+ {[%emt 0:00:00]}
Kh8 {[%emt 0:00:00]} 20. Rf4 {[%emt 0:00:00]} Rfe8 {[%emt 0:00:00]} 21. Bd2 {
[%emt 0:00:00]} Nc6 {[%emt 0:00:00]} 22. Rxf3 {[%emt 0:00:00]} Nxe7 {[%emt 0:
00:00]} 23. Rfe3 {[%emt 0:00:00]} 1-0

[Event "Gibraltar Masters 18th"]
[Site "Gibraltar"]
[Date "2020.01.21"]
[Round "1.43"]
[White "Gomez Anadon, Daniel"]
[Black "Peralta, Fernando"]
[Result "0-1"]
[ECO "C00"]
[WhiteElo "2276"]
[BlackElo "2574"]
[PlyCount "132"]
[EventDate "2020.01.21"]
[EventType "swiss"]
[EventRounds "10"]
[EventCountry "GGB"]
[SourceTitle "BritBase"]
[Source "John Saunders"]
[SourceDate "2021.06.05"]
[SourceVersion "1"]
[SourceVersionDate "2021.06.05"]
[SourceQuality "1"]
[TimeControl "40/100:0"]
[WhiteClock "0:09:58"]
[BlackClock "0:20:04"]

1. e4 {[%emt 0:00:00]} e6 {[%emt 0:00:00]} 2. d3 {[%emt 0:00:00]} d5 {[%emt 0:
00:00]} 3. Nd2 {[%emt 0:00:00]} Nf6 {[%emt 0:00:00]} 4. Ngf3 {[%emt 0:00:00]}
Be7 {[%emt 0:00:00]} 5. g3 {[%emt 0:00:00]} O-O {[%emt 0:00:00]} 6. Bg2 {
[%emt 0:00:00]} a5 {[%emt 0:00:00]} 7. O-O {[%emt 0:00:00]} a4 {[%emt 0:00:00]}
8. e5 {[%emt 0:00:00]} Nfd7 {[%emt 0:00:00]} 9. a3 {[%emt 0:00:00]} c5 {
[%emt 0:00:00]} 10. Re1 {[%emt 0:00:00]} Nc6 {[%emt 0:00:00]} 11. Nf1 {[%emt 0:
00:00]} b5 {[%emt 0:00:00]} 12. h4 {[%emt 0:00:00]} b4 {[%emt 0:00:00]} 13. h5
{[%emt 0:00:00]} h6 {[%emt 0:00:00]} 14. N1h2 {[%emt 0:00:00]} Re8 {[%emt 0:00:
00]} 15. Ng4 {[%emt 0:00:00]} Bf8 {[%emt 0:00:00]} 16. Bf4 {[%emt 0:00:00]}
bxa3 {[%emt 0:00:00]} 17. bxa3 {[%emt 0:00:00]} Rb8 {[%emt 0:00:00]} 18. c4 {
[%emt 0:00:00]} Rb3 {[%emt 0:00:00]} 19. Nd2 {[%emt 0:00:00]} Rxd3 {[%emt 0:00:
00]} 20. Qc2 {[%emt 0:00:00]} Rd4 {[%emt 0:00:00]} 21. Qxa4 {[%emt 0:00:00]}
Na5 {[%emt 0:00:00]} 22. Rac1 {[%emt 0:00:00]} Ba6 {[%emt 0:00:00]} 23. Bf1 {
[%emt 0:00:00]} Bxc4 {[%emt 0:00:00]} 24. Bxc4 {[%emt 0:00:00]} Nxc4 {[%emt 0:
00:00]} 25. Nxc4 {[%emt 0:00:00]} Rxc4 {[%emt 0:00:00]} 26. Rxc4 {[%emt 0:00:
00]} Nb6 {[%emt 0:00:00]} 27. Qc2 {[%emt 0:00:00]} Nxc4 {[%emt 0:00:00]} 28.
Bxh6 {[%emt 0:00:00]} Qa5 {[%emt 0:00:00]} 29. Qc1 {[%emt 0:00:00]} Ra8 {
[%emt 0:00:00]} 30. Kg2 {[%emt 0:00:00]} Qxa3 {[%emt 0:00:00]} 31. Qg5 {
[%emt 0:00:00]} Qd3 {[%emt 0:00:00]} 32. Nf6+ {[%emt 0:00:00]} Kh8 {[%emt 0:00:
00]} 33. Bxg7+ {[%emt 0:00:00]} Bxg7 {[%emt 0:00:00]} 34. h6 {[%emt 0:00:00]}
Qg6 {[%emt 0:00:00]} 35. hxg7+ {[%emt 0:00:00]} Kxg7 {[%emt 0:00:00]} 36. Nh5+
{[%emt 0:00:00]} Kf8 {[%emt 0:00:00]} 37. Qh4 {[%emt 0:00:00]} Qh7 {[%emt 0:00:
00]} 38. Qg5 {[%emt 0:00:00]} Qg6 {[%emt 0:00:00]} 39. Qh4 {[%emt 0:00:00]} Qh6
{[%emt 0:00:00]} 40. Ra1 {[%emt 0:01:04]} Re8 {[%emt 0:00:00]} 41. Re1 {
[%emt 0:00:00]} Nb6 {[%emt 0:00:00]} 42. g4 {[%emt 0:00:00]} d4 {[%emt 0:00:00]
} 43. Qg3 {[%emt 0:00:00]} Nd5 {[%emt 0:00:00]} 44. Qa3 {[%emt 0:00:00]} Nf4+ {
[%emt 0:00:00]} 45. Nxf4 {[%emt 0:00:00]} Qxf4 {[%emt 0:00:00]} 46. Qxc5+ {
[%emt 0:00:00]} Kg7 {[%emt 0:00:00]} 47. Qa3 {[%emt 0:00:00]} Qxg4+ {[%emt 0:
00:00]} 48. Qg3 {[%emt 0:00:00]} Qg6 {[%emt 0:00:00]} 49. Kf3 {[%emt 0:00:00]}
Rd8 {[%emt 0:00:00]} 50. Rg1 {[%emt 0:00:00]} d3 {[%emt 0:00:00]} 51. Qxg6+ {
[%emt 0:00:27]} fxg6 {[%emt 0:00:00]} 52. Ke3 {[%emt 0:00:00]} d2 {[%emt 0:00:
00]} 53. Rd1 {[%emt 0:00:00]} Kh6 {[%emt 0:00:00]} 54. f4 {[%emt 0:00:00]} Kh5
{[%emt 0:00:00]} 55. Kf3 {[%emt 0:00:00]} Rd3+ {[%emt 0:00:00]} 56. Ke2 {
[%emt 0:00:00]} Rd5 {[%emt 0:00:00]} 57. Kf3 {[%emt 0:00:00]} g5 {[%emt 0:00:
00]} 58. fxg5 {[%emt 0:00:00]} Kxg5 {[%emt 0:00:00]} 59. Ke4 {[%emt 0:01:10]}
Kg4 {[%emt 0:00:00]} 60. Rg1+ {[%emt 0:00:06]} Kh3 {[%emt 0:00:00]} 61. Rd1 {
[%emt 0:00:00]} Kg2 {[%emt 0:00:00]} 62. Ke3 {[%emt 0:00:00]} Rxe5+ {[%emt 0:
00:00]} 63. Kd3 {[%emt 0:00:00]} Rd5+ {[%emt 0:00:00]} 64. Ke3 {[%emt 0:00:00]}
e5 {[%emt 0:00:00]} 65. Ke4 {[%emt 0:00:00]} Rd8 {[%emt 0:00:00]} 66. Ke3 {
[%emt 0:00:00]} e4 {[%emt 0:00:00]} 0-1

[Event "Gibraltar Masters 18th"]
[Site "Gibraltar"]
[Date "2020.01.21"]
[Round "1.44"]
[White "Ramirez, Alejandro"]
[Black "Bru Rullo, Llatzer"]
[Result "1-0"]
[ECO "E21"]
[WhiteElo "2574"]
[BlackElo "2273"]
[PlyCount "49"]
[EventDate "2020.01.21"]
[EventType "swiss"]
[EventRounds "10"]
[EventCountry "GGB"]
[SourceTitle "BritBase"]
[Source "John Saunders"]
[SourceDate "2021.06.05"]
[SourceVersion "1"]
[SourceVersionDate "2021.06.05"]
[SourceQuality "1"]
[TimeControl "40/100:0"]
[WhiteClock "0:11:43"]
[BlackClock "0:10:40"]

1. d4 {[%emt 0:00:00]} Nf6 {[%emt 0:00:00]} 2. c4 {[%emt 0:00:00]} e6 {[%emt 0:
00:00]} 3. Nc3 {[%emt 0:00:00]} Bb4 {[%emt 0:00:00]} 4. Bd2 {[%emt 0:00:00]}
O-O {[%emt 0:00:00]} 5. e3 {[%emt 0:00:00]} b6 {[%emt 0:00:00]} 6. Bd3 {
[%emt 0:00:00]} Bb7 {[%emt 0:00:00]} 7. Nf3 {[%emt 0:00:00]} d6 {[%emt 0:00:00]
} 8. Qc2 {[%emt 0:00:00]} Nbd7 {[%emt 0:00:00]} 9. e4 {[%emt 0:00:00]} e5 {
[%emt 0:00:00]} 10. O-O {[%emt 0:00:00]} Re8 {[%emt 0:00:00]} 11. Rae1 {
[%emt 0:00:00]} a5 {[%emt 0:00:00]} 12. a3 {[%emt 0:00:00]} Bxc3 {[%emt 0:00:
00]} 13. Bxc3 {[%emt 0:00:00]} c6 {[%emt 0:00:00]} 14. Nd2 {[%emt 0:00:00]} Nf8
{[%emt 0:00:00]} 15. f4 {[%emt 0:00:00]} exd4 {[%emt 0:00:00]} 16. Bxd4 {
[%emt 0:00:00]} d5 {[%emt 0:00:00]} 17. cxd5 {[%emt 0:00:00]} cxd5 {[%emt 0:00:
00]} 18. Bxf6 {[%emt 0:00:00]} Qxf6 {[%emt 0:00:00]} 19. e5 {[%emt 0:00:00]}
Qe7 {[%emt 0:00:00]} 20. Rc1 {[%emt 0:00:00]} Rec8 {[%emt 0:00:00]} 21. Qb3 {
[%emt 0:00:00]} Qd8 {[%emt 0:00:00]} 22. Bf5 {[%emt 0:00:00]} Ne6 {[%emt 0:00:
00]} 23. Qh3 {[%emt 0:00:00]} Rxc1 {[%emt 0:00:00]} 24. Qxh7+ {[%emt 0:00:00]}
Kf8 {[%emt 0:00:00]} 25. Rxc1 {[%emt 0:00:00]} 1-0

[Event "Gibraltar Masters 18th"]
[Site "Gibraltar"]
[Date "2020.01.21"]
[Round "1.45"]
[White "Sowray, Peter J"]
[Black "Sanal, Vahap"]
[Result "0-1"]
[ECO "A41"]
[WhiteElo "2272"]
[BlackElo "2569"]
[PlyCount "86"]
[EventDate "2020.01.21"]
[EventType "swiss"]
[EventRounds "10"]
[EventCountry "GGB"]
[SourceTitle "BritBase"]
[Source "John Saunders"]
[SourceDate "2021.06.05"]
[SourceVersion "1"]
[SourceVersionDate "2021.06.05"]
[SourceQuality "1"]
[TimeControl "40/100:0"]
[WhiteClock "0:35:11"]
[BlackClock "1:17:27"]

1. d4 {[%emt 0:00:00]} d6 {[%emt 0:00:00]} 2. c4 {[%emt 0:00:00]} e5 {[%emt 0:
00:00]} 3. d5 {[%emt 0:00:00]} Be7 {[%emt 0:00:00]} 4. e4 {[%emt 0:00:00]} Bg5
{[%emt 0:00:00]} 5. Nc3 {[%emt 0:00:00]} Bxc1 {[%emt 0:00:00]} 6. Qxc1 {
[%emt 0:00:00]} Nf6 {[%emt 0:00:00]} 7. Bd3 {[%emt 0:00:00]} Na6 {[%emt 0:00:
00]} 8. Nge2 {[%emt 0:00:00]} Nc5 {[%emt 0:00:00]} 9. Bc2 {[%emt 0:00:00]} a5 {
[%emt 0:00:00]} 10. O-O {[%emt 0:00:00]} O-O {[%emt 0:00:00]} 11. Rb1 {[%emt 0:
00:00]} Nh5 {[%emt 0:00:00]} 12. b3 {[%emt 0:00:00]} Bd7 {[%emt 0:00:00]} 13.
a3 {[%emt 0:00:00]} g6 {[%emt 0:00:00]} 14. b4 {[%emt 0:00:00]} axb4 {[%emt 0:
00:00]} 15. axb4 {[%emt 0:00:00]} Na6 {[%emt 0:00:00]} 16. f4 {[%emt 0:00:00]}
exf4 {[%emt 0:00:00]} 17. Nxf4 {[%emt 0:00:00]} Nxf4 {[%emt 0:00:00]} 18. Qxf4
{[%emt 0:00:00]} Qe7 {[%emt 0:00:00]} 19. Rfe1 {[%emt 0:00:00]} Rae8 {[%emt 0:
00:00]} 20. Bd3 {[%emt 0:00:00]} f6 {[%emt 0:00:00]} 21. Ne2 {[%emt 0:00:00]}
Bc8 {[%emt 0:00:00]} 22. Nd4 {[%emt 0:00:00]} Nb8 {[%emt 0:00:00]} 23. Bf1 {
[%emt 0:00:00]} Rf7 {[%emt 0:00:00]} 24. Qf2 {[%emt 0:00:00]} Nd7 {[%emt 0:00:
00]} 25. Nb5 {[%emt 0:00:00]} Ne5 {[%emt 0:00:00]} 26. c5 {[%emt 0:00:00]} f5 {
[%emt 0:00:00]} 27. cxd6 {[%emt 0:00:00]} cxd6 {[%emt 0:00:00]} 28. Qb6 {
[%emt 0:00:00]} Rf6 {[%emt 0:00:00]} 29. Qc7 {[%emt 0:00:00]} Qf8 {[%emt 0:00:
00]} 30. Rbc1 {[%emt 0:00:00]} f4 {[%emt 0:00:00]} 31. Nd4 {[%emt 0:00:00]} f3
{[%emt 0:00:00]} 32. gxf3 {[%emt 0:00:00]} Rxf3 {[%emt 0:00:00]} 33. Bg2 {
[%emt 0:00:00]} Rf4 {[%emt 0:00:00]} 34. Rf1 {[%emt 0:00:00]} Nd3 {[%emt 0:00:
00]} 35. Ne2 {[%emt 0:00:00]} Rf6 {[%emt 0:00:00]} 36. Rxf6 {[%emt 0:00:00]}
Qxf6 {[%emt 0:00:00]} 37. Rf1 {[%emt 0:00:00]} Qg7 {[%emt 0:00:00]} 38. Qxd6 {
[%emt 0:00:00]} Bg4 {[%emt 0:00:00]} 39. Bf3 {[%emt 0:00:00]} Bh3 {[%emt 0:00:
00]} 40. Rd1 {[%emt 0:00:00]} Ne5 {[%emt 0:00:00]} 41. Nd4 {[%emt 0:00:00]} Qh6
{[%emt 0:00:00]} 42. Qf6 {[%emt 0:00:00]} Qe3+ {[%emt 0:00:00]} 43. Kh1 {
[%emt 0:00:00]} Qf2 {[%emt 0:00:00]} 0-1

[Event "Gibraltar Masters 18th"]
[Site "Gibraltar"]
[Date "2020.01.21"]
[Round "1.46"]
[White "Yuffa, Daniil"]
[Black "Werle, Iozefina"]
[Result "1-0"]
[ECO "C00"]
[WhiteElo "2566"]
[BlackElo "2271"]
[PlyCount "81"]
[EventDate "2020.01.21"]
[EventType "swiss"]
[EventRounds "10"]
[EventCountry "GGB"]
[SourceTitle "BritBase"]
[Source "John Saunders"]
[SourceDate "2021.06.05"]
[SourceVersion "1"]
[SourceVersionDate "2021.06.05"]
[SourceQuality "1"]
[TimeControl "40/100:0"]
[WhiteClock "0:18:15"]
[BlackClock "0:00:34"]

1. Nf3 {[%emt 0:00:00]} Nf6 {[%emt 0:00:00]} 2. g3 {[%emt 0:00:00]} e6 {
[%emt 0:00:00]} 3. Bg2 {[%emt 0:00:00]} d5 {[%emt 0:00:00]} 4. O-O {[%emt 0:00:
00]} Be7 {[%emt 0:00:00]} 5. d3 {[%emt 0:00:00]} O-O {[%emt 0:00:00]} 6. Nbd2 {
[%emt 0:00:00]} c5 {[%emt 0:00:00]} 7. e4 {[%emt 0:00:00]} Nc6 {[%emt 0:00:00]}
8. Re1 {[%emt 0:00:00]} Rb8 {[%emt 0:00:00]} 9. e5 {[%emt 0:00:00]} Nd7 {
[%emt 0:00:00]} 10. h4 {[%emt 0:00:00]} b5 {[%emt 0:00:00]} 11. Nf1 {[%emt 0:
00:00]} b4 {[%emt 0:00:00]} 12. N1h2 {[%emt 0:00:00]} a5 {[%emt 0:00:00]} 13.
h5 {[%emt 0:00:00]} a4 {[%emt 0:00:00]} 14. h6 {[%emt 0:00:00]} g6 {[%emt 0:00:
00]} 15. Ng4 {[%emt 0:00:00]} Bb7 {[%emt 0:00:00]} 16. a3 {[%emt 0:00:00]} bxa3
{[%emt 0:00:00]} 17. Rxa3 {[%emt 0:00:00]} Nb6 {[%emt 0:00:00]} 18. Be3 {
[%emt 0:00:00]} d4 {[%emt 0:00:00]} 19. Bd2 {[%emt 0:00:00]} Nb4 {[%emt 0:00:
00]} 20. Qc1 {[%emt 0:00:00]} Bxf3 {[%emt 0:00:00]} 21. Bxf3 {[%emt 0:00:00]}
N4d5 {[%emt 0:00:00]} 22. Bxd5 {[%emt 0:00:00]} exd5 {[%emt 0:00:00]} 23. e6 {
[%emt 0:00:00]} f6 {[%emt 0:00:00]} 24. Ba5 {[%emt 0:00:00]} Qe8 {[%emt 0:00:
00]} 25. Qa1 {[%emt 0:00:00]} g5 {[%emt 0:00:00]} 26. Bxb6 {[%emt 0:00:00]}
Rxb6 {[%emt 0:00:00]} 27. Rxa4 {[%emt 0:00:00]} f5 {[%emt 0:00:00]} 28. Nh2 {
[%emt 0:00:00]} g4 {[%emt 0:00:00]} 29. Ra7 {[%emt 0:00:00]} Kh8 {[%emt 0:00:
00]} 30. Qa5 {[%emt 0:00:00]} Rc6 {[%emt 0:00:00]} 31. Qb5 {[%emt 0:00:00]} Bd6
{[%emt 0:00:00]} 32. e7 {[%emt 0:00:00]} Rg8 {[%emt 0:00:00]} 33. Re6 {[%emt 0:
00:00]} f4 {[%emt 0:00:00]} 34. Nxg4 {[%emt 0:00:00]} fxg3 {[%emt 0:00:00]} 35.
f3 {[%emt 0:00:00]} g2 {[%emt 0:00:00]} 36. Re2 {[%emt 0:00:00]} Bf4 {[%emt 0:
01:00]} 37. Qxc6 {[%emt 0:00:00]} Qxc6 {[%emt 0:00:04]} 38. e8=Q {[%emt 0:00:
00]} Be3+ {[%emt 0:00:00]} 39. Rxe3 {[%emt 0:00:00]} Rxe8 {[%emt 0:00:00]} 40.
Nf6 {[%emt 0:00:00]} Re7 {[%emt 0:00:02]} 41. Rexe7 {[%emt 0:00:00]} 1-0

[Event "Gibraltar Masters 18th"]
[Site "Gibraltar"]
[Date "2020.01.21"]
[Round "1.47"]
[White "Gvanceladze, Anna"]
[Black "Antipov, Mikhail Al."]
[Result "0-1"]
[ECO "E62"]
[WhiteElo "2270"]
[BlackElo "2562"]
[PlyCount "82"]
[EventDate "2020.01.21"]
[EventType "swiss"]
[EventRounds "10"]
[EventCountry "GGB"]
[SourceTitle "BritBase"]
[Source "John Saunders"]
[SourceDate "2021.06.05"]
[SourceVersion "1"]
[SourceVersionDate "2021.06.05"]
[SourceQuality "1"]
[TimeControl "40/100:0"]
[WhiteClock "0:00:35"]
[BlackClock "0:19:35"]

1. d4 {[%emt 0:00:00]} Nf6 {[%emt 0:00:00]} 2. Nf3 {[%emt 0:00:00]} g6 {
[%emt 0:00:00]} 3. g3 {[%emt 0:00:00]} Bg7 {[%emt 0:00:00]} 4. Bg2 {[%emt 0:00:
00]} O-O {[%emt 0:00:00]} 5. O-O {[%emt 0:00:00]} c6 {[%emt 0:00:00]} 6. c4 {
[%emt 0:00:00]} d6 {[%emt 0:00:00]} 7. Nc3 {[%emt 0:00:00]} Bf5 {[%emt 0:00:00]
} 8. Re1 {[%emt 0:00:00]} Ne4 {[%emt 0:00:00]} 9. Qb3 {[%emt 0:00:00]} Nxc3 {
[%emt 0:00:00]} 10. bxc3 {[%emt 0:00:00]} Bc8 {[%emt 0:00:00]} 11. e4 {[%emt 0:
00:00]} Nd7 {[%emt 0:00:00]} 12. Be3 {[%emt 0:00:00]} Qc7 {[%emt 0:00:00]} 13.
Nd2 {[%emt 0:00:00]} c5 {[%emt 0:00:00]} 14. f4 {[%emt 0:00:00]} cxd4 {[%emt 0:
00:00]} 15. cxd4 {[%emt 0:00:00]} e5 {[%emt 0:00:00]} 16. Nf3 {[%emt 0:00:00]}
b6 {[%emt 0:00:00]} 17. Rac1 {[%emt 0:00:00]} Bb7 {[%emt 0:00:00]} 18. c5 {
[%emt 0:00:00]} bxc5 {[%emt 0:00:00]} 19. dxc5 {[%emt 0:00:00]} Nxc5 {[%emt 0:
00:00]} 20. fxe5 {[%emt 0:00:00]} Qd7 {[%emt 0:00:00]} 21. Bxc5 {[%emt 0:00:00]
} dxc5 {[%emt 0:00:00]} 22. Rxc5 {[%emt 0:00:00]} Qe7 {[%emt 0:00:00]} 23. Qc4
{[%emt 0:00:00]} Rac8 {[%emt 0:00:00]} 24. Rxc8 {[%emt 0:00:00]} Rxc8 {[%emt 0:
00:00]} 25. Qb3 {[%emt 0:00:00]} Rc7 {[%emt 0:00:00]} 26. Qe3 {[%emt 0:00:00]}
Qc5 {[%emt 0:00:00]} 27. Bh3 {[%emt 0:00:00]} Qxe3+ {[%emt 0:00:00]} 28. Rxe3 {
[%emt 0:00:00]} Bf8 {[%emt 0:00:00]} 29. Re2 {[%emt 0:00:00]} Rc1+ {[%emt 0:00:
00]} 30. Kg2 {[%emt 0:00:00]} Bc5 {[%emt 0:00:00]} 31. Bd7 {[%emt 0:00:00]} Ba6
{[%emt 0:00:00]} 32. Re1 {[%emt 0:00:00]} Rc2+ {[%emt 0:00:00]} 33. Kh3 {
[%emt 0:00:00]} Rf2 {[%emt 0:00:00]} 34. Rc1 {[%emt 0:00:02]} Bf1+ {[%emt 0:00:
00]} 35. Kg4 {[%emt 0:00:00]} Be3 {[%emt 0:00:00]} 36. e6 {[%emt 0:00:14]} h5+
{[%emt 0:00:00]} 37. Kh4 {[%emt 0:00:00]} fxe6 {[%emt 0:00:00]} 38. Bxe6+ {
[%emt 0:00:00]} Kg7 {[%emt 0:00:00]} 39. Rc7+ {[%emt 0:00:10]} Kh6 {[%emt 0:00:
00]} 40. g4 {[%emt 0:00:36]} Rxh2+ {[%emt 0:00:00]} 41. Kg3 {[%emt 0:01:43]}
Rh3# {[%emt 0:00:00]} 0-1

[Event "Gibraltar Masters 18th"]
[Site "Gibraltar"]
[Date "2020.01.21"]
[Round "1.48"]
[White "Aryan, Chopra"]
[Black "Rangel, Daniel"]
[Result "1-0"]
[ECO "B38"]
[WhiteElo "2562"]
[BlackElo "2269"]
[PlyCount "81"]
[EventDate "2020.01.21"]
[EventType "swiss"]
[EventRounds "10"]
[EventCountry "GGB"]
[SourceTitle "BritBase"]
[Source "John Saunders"]
[SourceDate "2021.06.05"]
[SourceVersion "1"]
[SourceVersionDate "2021.06.05"]
[SourceQuality "1"]
[TimeControl "40/100:0"]
[WhiteClock "0:18:35"]
[BlackClock "0:04:17"]

1. e4 {[%emt 0:00:00]} c5 {[%emt 0:00:00]} 2. Nf3 {[%emt 0:00:00]} g6 {[%emt 0:
00:00]} 3. c4 {[%emt 0:00:00]} Bg7 {[%emt 0:00:00]} 4. d4 {[%emt 0:00:00]} cxd4
{[%emt 0:00:00]} 5. Nxd4 {[%emt 0:00:00]} Nc6 {[%emt 0:00:00]} 6. Be3 {[%emt 0:
00:00]} Nf6 {[%emt 0:00:00]} 7. Nc3 {[%emt 0:00:00]} O-O {[%emt 0:00:00]} 8.
Be2 {[%emt 0:00:00]} d6 {[%emt 0:00:00]} 9. O-O {[%emt 0:00:00]} Nxd4 {[%emt 0:
00:00]} 10. Bxd4 {[%emt 0:00:00]} Bd7 {[%emt 0:00:00]} 11. Qd3 {[%emt 0:00:00]}
a5 {[%emt 0:00:00]} 12. b3 {[%emt 0:00:00]} Bc6 {[%emt 0:00:00]} 13. a3 {
[%emt 0:00:00]} Nd7 {[%emt 0:00:00]} 14. Bxg7 {[%emt 0:00:00]} Kxg7 {[%emt 0:
00:00]} 15. b4 {[%emt 0:00:00]} b6 {[%emt 0:00:00]} 16. Qd4+ {[%emt 0:00:00]}
Kg8 {[%emt 0:02:16]} 17. f4 {[%emt 0:00:00]} Qc7 {[%emt 0:00:00]} 18. Nd5 {
[%emt 0:00:00]} Bxd5 {[%emt 0:00:00]} 19. cxd5 {[%emt 0:00:00]} Rfc8 {[%emt 0:
00:00]} 20. Bb5 {[%emt 0:00:00]} axb4 {[%emt 0:00:00]} 21. axb4 {[%emt 0:00:00]
} Rxa1 {[%emt 0:00:00]} 22. Rxa1 {[%emt 0:00:00]} Nf6 {[%emt 0:00:00]} 23. Bc6
{[%emt 0:00:00]} Nh5 {[%emt 0:00:00]} 24. Qf2 {[%emt 0:00:00]} e6 {[%emt 0:00:
00]} 25. g3 {[%emt 0:00:00]} Rb8 {[%emt 0:00:00]} 26. Rf1 {[%emt 0:00:00]} exd5
{[%emt 0:00:00]} 27. exd5 {[%emt 0:00:00]} Qe7 {[%emt 0:00:00]} 28. g4 {
[%emt 0:00:00]} Nf6 {[%emt 0:00:00]} 29. Re1 {[%emt 0:00:00]} Qa7 {[%emt 0:00:
00]} 30. g5 {[%emt 0:00:00]} Ng4 {[%emt 0:00:00]} 31. Qf3 {[%emt 0:00:00]} b5+
{[%emt 0:00:00]} 32. Kg2 {[%emt 0:00:00]} h5 {[%emt 0:00:00]} 33. h3 {[%emt 0:
00:00]} Qd4 {[%emt 0:00:00]} 34. hxg4 {[%emt 0:00:00]} Qxb4 {[%emt 0:00:00]}
35. Re4 {[%emt 0:00:00]} Qb1 {[%emt 0:00:00]} 36. gxh5 {[%emt 0:00:00]} gxh5 {
[%emt 0:00:00]} 37. f5 {[%emt 0:00:00]} b4 {[%emt 0:00:00]} 38. f6 {[%emt 0:00:
00]} b3 {[%emt 0:00:00]} 39. g6 {[%emt 0:00:00]} Qc2+ {[%emt 0:00:00]} 40. Kh3
{[%emt 0:00:00]} fxg6 {[%emt 0:00:00]} 41. Re8+ {[%emt 0:00:00]} 1-0

[Event "Gibraltar Masters 18th"]
[Site "Gibraltar"]
[Date "2020.01.21"]
[Round "1.49"]
[White "Plotkin, Victor"]
[Black "Li, Di"]
[Result "1/2-1/2"]
[ECO "C55"]
[WhiteElo "2267"]
[BlackElo "2562"]
[PlyCount "115"]
[EventDate "2020.01.21"]
[EventType "swiss"]
[EventRounds "10"]
[EventCountry "GGB"]
[SourceTitle "BritBase"]
[Source "John Saunders"]
[SourceDate "2021.06.05"]
[SourceVersion "1"]
[SourceVersionDate "2021.06.05"]
[SourceQuality "1"]
[TimeControl "40/100:0"]
[WhiteClock "0:19:06"]
[BlackClock "0:07:18"]

1. e4 {[%emt 0:00:00]} e5 {[%emt 0:00:00]} 2. Nf3 {[%emt 0:00:00]} Nc6 {
[%emt 0:00:00]} 3. Bc4 {[%emt 0:00:00]} Nf6 {[%emt 0:00:00]} 4. d3 {[%emt 0:00:
00]} h6 {[%emt 0:00:00]} 5. O-O {[%emt 0:00:00]} d6 {[%emt 0:00:00]} 6. c3 {
[%emt 0:00:00]} g5 {[%emt 0:00:00]} 7. a4 {[%emt 0:00:00]} Bg7 {[%emt 0:00:00]}
8. Nbd2 {[%emt 0:00:00]} Ne7 {[%emt 0:00:00]} 9. Qb3 {[%emt 0:00:00]} O-O {
[%emt 0:00:00]} 10. d4 {[%emt 0:00:00]} exd4 {[%emt 0:00:00]} 11. Nxd4 {
[%emt 0:00:00]} c5 {[%emt 0:00:00]} 12. Ne2 {[%emt 0:00:00]} Nc6 {[%emt 0:00:
00]} 13. Qc2 {[%emt 0:00:00]} Ne5 {[%emt 0:00:00]} 14. Ng3 {[%emt 0:00:00]} h5
{[%emt 0:00:00]} 15. Be2 {[%emt 0:00:00]} g4 {[%emt 0:00:00]} 16. Nc4 {[%emt 0:
00:00]} h4 {[%emt 0:00:00]} 17. Nf5 {[%emt 0:00:00]} Bxf5 {[%emt 0:00:00]} 18.
exf5 {[%emt 0:00:00]} Nxc4 {[%emt 0:00:00]} 19. Bxc4 {[%emt 0:00:00]} d5 {
[%emt 0:00:00]} 20. Rd1 {[%emt 0:00:00]} Qe8 {[%emt 0:00:00]} 21. Be2 {[%emt 0:
00:00]} Qe5 {[%emt 0:00:00]} 22. g3 {[%emt 0:00:00]} Rfe8 {[%emt 0:00:00]} 23.
Bb5 {[%emt 0:00:00]} Qe4 {[%emt 0:00:00]} 24. Qxe4 {[%emt 0:00:00]} Rxe4 {
[%emt 0:00:00]} 25. Bd3 {[%emt 0:00:00]} Ree8 {[%emt 0:00:00]} 26. gxh4 {
[%emt 0:00:00]} c4 {[%emt 0:00:00]} 27. Bf1 {[%emt 0:00:00]} Re5 {[%emt 0:00:
00]} 28. Be3 {[%emt 0:00:00]} Rxf5 {[%emt 0:00:00]} 29. Bg2 {[%emt 0:00:00]} a6
{[%emt 0:00:00]} 30. Bd4 {[%emt 0:00:00]} Rd8 {[%emt 0:00:00]} 31. Re1 {
[%emt 0:00:00]} Nh5 {[%emt 0:00:00]} 32. Be3 {[%emt 0:00:00]} Bf6 {[%emt 0:00:
00]} 33. h3 {[%emt 0:00:00]} g3 {[%emt 0:00:00]} 34. fxg3 {[%emt 0:00:00]} Nxg3
{[%emt 0:00:00]} 35. Rad1 {[%emt 0:00:00]} Kh7 {[%emt 0:00:00]} 36. Bg5 {
[%emt 0:00:00]} Kg6 {[%emt 0:00:00]} 37. Bxf6 {[%emt 0:00:00]} Kxf6 {[%emt 0:
00:00]} 38. Kh2 {[%emt 0:00:00]} Nh5 {[%emt 0:00:00]} 39. Rf1 {[%emt 0:00:21]}
Rxf1 {[%emt 0:00:00]} 40. Bxf1 {[%emt 0:00:20]} b5 {[%emt 0:00:00]} 41. axb5 {
[%emt 0:00:00]} axb5 {[%emt 0:00:00]} 42. Kg2 {[%emt 0:00:00]} Nf4+ {[%emt 0:
00:00]} 43. Kf3 {[%emt 0:00:00]} Kf5 {[%emt 0:00:00]} 44. Ra1 {[%emt 0:00:00]}
Rb8 {[%emt 0:00:00]} 45. Ra5 {[%emt 0:00:00]} Ke5 {[%emt 0:00:00]} 46. Ke3 {
[%emt 0:00:00]} f5 {[%emt 0:00:00]} 47. Ra7 {[%emt 0:00:00]} b4 {[%emt 0:00:00]
} 48. Re7+ {[%emt 0:00:00]} Ne6 {[%emt 0:00:00]} 49. h5 {[%emt 0:00:00]} bxc3 {
[%emt 0:00:00]} 50. bxc3 {[%emt 0:00:00]} f4+ {[%emt 0:00:00]} 51. Kd2 {
[%emt 0:00:00]} Rb2+ {[%emt 0:00:00]} 52. Ke1 {[%emt 0:00:00]} Kf6 {[%emt 0:00:
00]} 53. Rd7 {[%emt 0:00:00]} Nc5 {[%emt 0:00:00]} 54. Rxd5 {[%emt 0:00:00]}
Ne4 {[%emt 0:00:00]} 55. Rd4 {[%emt 0:00:00]} Rb1+ {[%emt 0:00:00]} 56. Rd1 {
[%emt 0:00:00]} Rb2 {[%emt 0:00:00]} 57. Rd4 {[%emt 0:00:00]} Rb1+ {[%emt 0:00:
00]} 58. Rd1 {[%emt 0:00:00]} 1/2-1/2